fUSD/lending_fUSD_20260402
["ID","MTS","AMOUNT","RATE_DAILY","PERIOD"]
[419290739,1775116240150,-159.91138824,0.00014973,2]
[419290740,1775116240159,-173.20012352,0.00014973,2]
[419290741,1775116240170,-500.0,0.00014996,2]
[419290742,1775116240180,-500.0,0.00014996,2]
[419290743,1775116240191,-500.0,0.00014996,2]
[419290744,1775116240201,-520.4574385,0.00014996,2]
[419290745,1775116240210,-667.58,0.00015004,2]
[419290746,1775116240222,-500.0,0.00015004,2]
[419290747,1775116240233,-500.0,0.00015005,2]
[419290748,1775116240242,-515.24152418,0.00015005,2]
[419290749,1775116240252,-500.0,0.00015005,2]
[419290750,1775116240261,-500.0,0.00015005,2]
[419290751,1775116240271,-500.0,0.00015005,2]
[419290752,1775116240280,-500.0,0.00015005,2]
[419290753,1775116240290,-500.0,0.00015005,2]
[419290754,1775116240300,-500.0,0.00015005,2]
[419290755,1775116240309,-500.0,0.00015005,2]
[419290756,1775116240319,-262.05217327,0.00015005,2]
[419290757,1775116240330,-511.55890723,0.00015005,2]
[419290758,1775116240339,-1000.0,0.00015005,2]
[419290759,1775116240348,-316071.4901,0.00015005,2]
[419290760,1775116240359,-166.66,0.00015062,2]
[419290761,1775116240369,-500.0,0.00015073,2]
[419290762,1775116240378,-275.47720931,0.00015073,2]
[419290763,1775116240388,-500.0,0.00015073,2]
[419290764,1775116240398,-500.0,0.00015073,2]
[419290765,1775116240407,-447.25632762,0.00015073,2]
[419290766,1775116240416,-359.66331739,0.00015073,2]
[419290767,1775116240426,-500.0,0.00015073,2]
[419290768,1775116240435,-500.0,0.00015073,2]
[419290769,1775116240444,-182.99266599,0.00015073,2]
[419290770,1775116240454,-500.0,0.00015073,2]
[419290771,1775116240465,-500.0,0.00015073,2]
[419290772,1775116240474,-500.0,0.00015073,2]
[419290773,1775116240485,-474.26742554,0.00015073,2]
[419290774,1775116240495,-184.42,0.0001521,2]
[419290775,1775116240504,-667.58,0.00015278,2]
[419290776,1775116240514,-337.97256879,0.00015278,2]
[419290777,1775116240523,-1571.0,0.00015301,2]
[419290778,1775116240533,-341.04061233,0.0001532,2]
[419290779,1775116240542,-2806.0,0.00015351,2]
[419290780,1775116240552,-667.58,0.00015552,2]
[419290781,1775116240561,-167.86487257,0.00015584,2]
[419290782,1775116240570,-150.0,0.000156,2]
[419290784,1775116240580,-3240.0,0.0001562,2]
[419290785,1775116240591,-1000.0,0.00015621,2]
[419290786,1775116240600,-1000.0,0.00015621,2]
[419290787,1775116240610,-1000.0,0.00015621,2]
[419290788,1775116240619,-761.58740434,0.00015621,2]
[419290789,1775116240629,-744.6131476,0.00015621,2]
[419290790,1775116240639,-501.40120114,0.00015621,2]
[419290791,1775116240648,-150.0,0.00015642,2]
[419290793,1775116240658,-500.0,0.00015791,2]
[419290795,1775116240669,-500.0,0.00015791,2]
[419290796,1775116240678,-504.67776346,0.00015791,2]
[419290797,1775116240688,-500.0,0.00015791,2]
[419290798,1775116240698,-500.0,0.00015791,2]
[419290799,1775116240707,-467.61263072,0.00015791,2]
[419290800,1775116240717,-500.0,0.00015791,2]
[419290801,1775116240726,-500.0,0.00015791,2]
[419290802,1775116240736,-507.16627596,0.00015791,2]
[419290803,1775116240747,-513.61262372,0.00015791,2]
[419290804,1775116240757,-500.0,0.00015791,2]
[419290805,1775116240767,-500.0,0.00015791,2]
[419290806,1775116240777,-500.0,0.00015791,2]
[419290807,1775116240787,-504.54419002,0.00015791,2]
[419290808,1775116240797,-512.16689272,0.00015791,2]
[419290809,1775116240807,-506.6761321,0.00015791,2]
[419290810,1775116240819,-5600.0,0.000158,5]
[419290811,1775116240828,-667.58,0.00015826,2]
[419290812,1775116240839,-3323.0,0.00015832,5]
[419290813,1775116240849,-9221.26883546,0.0001584,2]
[419290814,1775116240858,-500.0,0.00015873,2]
[419290815,1775116240867,-500.0,0.0001589,2]
[419290816,1775116240877,-519.17533645,0.0001589,2]
[419290817,1775116240886,-392.02117727,0.0001589,2]
[419290819,1775116240896,-2809.0,0.00015892,2]
[419290820,1775116240905,-319.252,0.00015896,2]
[419290821,1775116240915,-1000.0,0.00015896,2]
[419290822,1775116240924,-351.357,0.00015896,2]
[419290823,1775116240934,-500.0,0.00015899,2]
[419290824,1775116240944,-7500.0,0.000159,5]
[419290825,1775116240953,-200.0,0.000159,2]
[419290826,1775116240963,-16454.90576493,0.000159,2]
[419290827,1775116240972,-3558.38843003,0.000159,2]
[419290828,1775116240981,-12004.96673852,0.00015956,2]
[419290829,1775116240990,-4020.34449656,0.00015956,2]
[419290831,1775116240999,-500.70581269,0.0001597,2]
[419290832,1775116241010,-700.0,0.0001597,2]
[419290833,1775116241019,-700.0,0.0001597,2]
[419290834,1775116241028,-1230.89693021,0.0001597,2]
[419290835,1775116241037,-197.11348968,0.00015984,2]
[419290836,1775116241046,-276.21513294,0.00015984,2]
[419290837,1775116241055,-181.61045662,0.00015984,2]
[419290838,1775116241064,-151.0,0.00015997,2]
[419290839,1775116241074,-500.0,0.00015998,2]
[419290840,1775116241083,-1090.37665391,0.00015999,5]
[419290841,1775116241093,-13034.0732426,0.00015999,2]
[419290842,1775116241103,-170.6153057,0.00015999,2]
[419290843,1775116241113,-988.7006655,0.00015999,2]
[419290844,1775116241122,-110480.2086486,0.00015999,2]
[419290845,1775116241132,-500.0,0.00015999,2]
[419290846,1775116241142,-500.0,0.00015999,2]
[419290847,1775116241151,-500.0,0.00015999,2]
[419290848,1775116241160,-500.0,0.00015999,2]
[419290850,1775116241275,-500.0,0.00015999,2]
[419290851,1775116241284,-500.0,0.00015999,2]
[419290852,1775116241294,-500.0,0.00015999,2]
[419290853,1775116241303,-500.0,0.00015999,2]
[419290854,1775116241312,-29425.826037,0.00015999,2]
[419290855,1775116241321,-500.0,0.00015999,2]
[419290856,1775116241331,-500.0,0.00015999,2]
[419290857,1775116241340,-500.0,0.00015999,2]
[419290858,1775116241349,-500.0,0.00015999,2]
[419290859,1775116241359,-558913.67526594,0.00016,2]
[419290860,1775116241422,-95162.38174288,0.00016,2]
[419290861,1775116241431,-89769.13786712,0.00016,2]
[419290862,1775116241459,-610.45389952,0.00016,2]
[419290871,1775116242758,-1985.03709536,0.00016,2]
[419290872,1775116242768,-1911.16944807,0.00016,2]
[419290873,1775116242828,-3640.52001996,0.00016,2]
[419290874,1775116242942,-13234.06367669,0.00016,2]
[419290879,1775116245512,-2507.06624788,0.00014805,2]
[419290880,1775116245576,-2960.57115212,0.00014805,2]
[419290881,1775116245586,-150.0,0.000159,2]
[419290882,1775116245596,-153.40355632,0.00016,2]
[419290883,1775116245755,-6563.85459759,0.00016,2]
[419290884,1775116245767,-876.9534566,0.00016,2]
[419290885,1775116245943,-774.1899953,0.00016,2]
[419290886,1775116245955,-126399.31507993,0.00016,2]
[419291291,1775117431794,-617.83,0.00011981,2]
[419291292,1775117431804,-250.0,0.00013,2]
[419291293,1775117431814,-150.0,0.0001378,2]
[419291294,1775117431823,-150.0,0.00013849,2]
[419291295,1775117431832,-184.42,0.00013949,2]
[419291296,1775117431842,-150.0,0.00014054,2]
[419291297,1775117431851,-4527.91,0.00014085,2]
[419291298,1775117431863,-1200.0,0.00014343,2]
[419291299,1775117431874,-2032.1,0.00014344,2]
[419291300,1775117431885,-7348.76,0.00014504,2]
[419291301,1775117431895,-375.62494775,0.000146,7]
[419291302,1775117431904,-2286.27556199,0.000146,2]
[419291303,1775117431916,-150.0,0.00014603,2]
[419291304,1775117431927,-301.9143542,0.00014604,2]
[419291305,1775117431937,-500.0,0.00014604,2]
[419291306,1775117431947,-235.14805942,0.00014604,2]
[419291307,1775117431956,-500.0,0.00014604,2]
[419291308,1775117431966,-500.0,0.00014604,2]
[419291309,1775117431975,-500.0,0.00014604,2]
[419291310,1775117431984,-500.0,0.00014604,2]
[419291311,1775117431994,-500.0,0.00014604,2]
[419291312,1775117432005,-396.79139325,0.00014604,2]
[419291313,1775117432015,-387.1827766,0.00014604,2]
[419291314,1775117432024,-500.0,0.00014604,2]
[419291315,1775117432034,-500.0,0.00014604,2]
[419291316,1775117432044,-500.0,0.00014604,2]
[419291317,1775117432054,-500.0,0.00014604,2]
[419291318,1775117432066,-500.0,0.00014604,2]
[419291319,1775117432075,-500.0,0.00014604,2]
[419291320,1775117432085,-163.37646075,0.00014604,2]
[419291321,1775117432096,-500.0,0.00014604,2]
[419291322,1775117432106,-500.0,0.00014604,2]
[419291323,1775117432116,-500.0,0.00014604,2]
[419291324,1775117432125,-500.0,0.00014604,2]
[419291325,1775117432135,-500.0,0.00014604,2]
[419291326,1775117432144,-500.0,0.00014604,2]
[419291327,1775117432154,-500.0,0.00014604,2]
[419291328,1775117432163,-500.0,0.00014604,2]
[419291329,1775117432172,-500.0,0.00014604,2]
[419291330,1775117432182,-500.0,0.00014604,2]
[419291331,1775117432191,-500.0,0.00014604,2]
[419291332,1775117432201,-500.0,0.00014604,2]
[419291333,1775117432210,-500.0,0.00014604,2]
[419291334,1775117432223,-101783.54325674,0.00014605,2]
[419291335,1775117432235,-2904.39005324,0.00014605,2]
[419291336,1775117432247,-7588.49211679,0.00014605,2]
[419291337,1775117432263,-29189.04753327,0.00014605,2]
[419291338,1775117432322,-11008.26560475,0.00014605,2]
[419291341,1775117437841,-524.0,0.00014605,2]
[419291342,1775117438092,-287.68959405,0.00014605,2]
[419291400,1775117440110,-3549.4941997,0.00014605,2]
[419291401,1775117440122,-7464.80342362,0.00014605,2]
[419291403,1775117440489,-8103.01522242,0.00014605,2]
[419291404,1775117440500,-1741.12838713,0.00014605,2]
[419291405,1775117440569,-635.19657638,0.00014605,2]
[419291406,1775117440581,-104723.37752878,0.00014605,2]
[419291407,1775117440595,-461660.16000313,0.00014605,2]
[419291408,1775117440604,-500.0,0.00014673,2]
[419291409,1775117440614,-500.47003133,0.00014673,2]
[419291410,1775117440624,-164.98377626,0.00014673,2]
[419291411,1775117440634,-500.68484421,0.00014673,2]
[419291412,1775117440643,-159.91138824,0.00014673,2]
[419291413,1775117440653,-500.30491238,0.00014673,2]
[419291414,1775117440823,-500.0,0.00014673,2]
[419291415,1775117440832,-2600.0,0.000147,5]
[419291416,1775117440843,-13114.90387506,0.00014704,2]
[419291417,1775117440852,-3474.3649,0.00014705,2]
[419291418,1775117440862,-2500.0,0.00014705,2]
[419291419,1775117440871,-500.0,0.00014705,2]
[419291420,1775117440881,-156.09193039,0.00014705,2]
[419291421,1775117440890,-1500.0,0.00014721,2]
[419291422,1775117440900,-200.0,0.00014721,2]
[419291423,1775117440909,-500.0,0.00014721,2]
[419291424,1775117440919,-150.0,0.00014721,2]
[419291425,1775117440928,-1855.25,0.00014721,2]
[419291426,1775117440938,-3240.0,0.00014721,2]
[419291427,1775117440947,-500.0,0.00014773,2]
[419291428,1775117440957,-502.29127134,0.00014773,2]
[419291429,1775117440967,-502.38373602,0.00014773,2]
[419291430,1775117440976,-500.0,0.00014773,2]
[419291431,1775117440986,-500.0,0.00014773,2]
[419291432,1775117440995,-503.83464709,0.00014773,2]
[419291433,1775117441004,-164.35655208,0.00014773,2]
[419291434,1775117441014,-200.0,0.00014796,2]
[419291435,1775117441024,-500.0,0.00014796,2]
[419291436,1775117441034,-500.0,0.00014796,2]
[419291437,1775117441044,-500.0,0.00014796,2]
[419291438,1775117441054,-500.0,0.00014796,2]
[419291439,1775117441064,-151.0,0.00014796,2]
[419291440,1775117441074,-151.0,0.00014796,2]
[419291441,1775117441084,-151.0,0.00014796,2]
[419291442,1775117441094,-151.0,0.00014796,2]
[419291443,1775117441104,-500.0,0.00014796,2]
[419291444,1775117441114,-151.0,0.00014796,2]
[419291445,1775117441125,-500.0,0.00014796,2]
[419291446,1775117441136,-161.48563697,0.00014796,2]
[419291447,1775117441146,-500.0,0.00014796,2]
[419291448,1775117441156,-493.51314513,0.00014796,2]
[419291449,1775117441166,-5200.0,0.000148,5]
[419291450,1775117441176,-150.6474,0.00014804,2]
[419291451,1775117441186,-508.65862639,0.00014804,2]
[419291452,1775117441195,-500.0,0.00014804,2]
[419291453,1775117441205,-500.0,0.00014804,2]
[419291454,1775117441215,-500.0,0.00014804,2]
[419291455,1775117441225,-500.0,0.00014804,2]
[419291456,1775117441234,-500.0,0.00014804,2]
[419291457,1775117441243,-500.0,0.00014804,2]
[419291458,1775117441253,-500.0,0.00014804,2]
[419291459,1775117441262,-504.67776346,0.00014804,2]
[419291460,1775117441272,-500.0,0.00014804,2]
[419291461,1775117441281,-500.0,0.00014804,2]
[419291462,1775117441291,-500.0,0.00014804,2]
[419291463,1775117441301,-500.0,0.00014804,2]
[419291464,1775117441310,-500.0,0.00014804,2]
[419291465,1775117441319,-326897.9896,0.00014805,2]
[419291466,1775117441330,-5000.0,0.00014805,2]
[419291467,1775117441340,-806.00023686,0.00014805,2]
[419291468,1775117441350,-500.0,0.00014872,2]
[419291469,1775117441360,-502.22201414,0.00014873,2]
[419291470,1775117441370,-500.62845859,0.00014873,2]
[419291471,1775117441379,-211.4,0.00014873,2]
[419291472,1775117441389,-211.4,0.00014873,2]
[419291473,1775117441398,-211.4,0.00014873,2]
[419291474,1775117441407,-501.32196063,0.00014873,2]
[419291475,1775117441417,-500.0,0.00014873,2]
[419291476,1775117441426,-359.66331739,0.00014873,2]
[419291477,1775117441436,-500.0,0.00014873,2]
[419291478,1775117441445,-500.0,0.00014873,2]
[419291479,1775117441455,-500.0,0.00014873,2]
[419291480,1775117441464,-518.78086714,0.00014873,2]
[419291481,1775117441473,-590.83132733,0.00014873,2]
[419291482,1775117441482,-500.50185113,0.00014873,2]
[419291483,1775117441491,-337.66380378,0.00014873,2]
[419291484,1775117441501,-500.0,0.00014873,2]
[419291485,1775117441511,-501.30239513,0.00014873,2]
[419291486,1775117441520,-500.0,0.00014873,2]
[419291487,1775117441530,-500.0,0.00014873,2]
[419291488,1775117441539,-500.48745238,0.00014873,2]
[419291489,1775117441549,-500.0,0.00014873,2]
[419291490,1775117441559,-500.0,0.00014873,2]
[419291491,1775117441568,-182.99266599,0.00014873,2]
[419291492,1775117441578,-159.74316253,0.00014873,2]
[419291493,1775117441587,-500.0,0.00014873,2]
[419291494,1775117441596,-500.48771159,0.00014873,2]
[419291495,1775117441605,-501.1834914,0.00014873,2]
[419291496,1775117441614,-384.73655496,0.00014873,2]
[419291497,1775117441623,-500.0,0.00014873,2]
[419291498,1775117441633,-501.36546682,0.00014873,2]
[419291499,1775117441642,-500.0,0.00014873,2]
[419291500,1775117441652,-474.26742554,0.00014873,2]
[419291501,1775117441663,-500.0,0.00014873,2]
[419291502,1775117441672,-500.0,0.00014873,2]
[419291503,1775117441683,-462.10268138,0.00014894,2]
[419291504,1775117441693,-150.0,0.000149,2]
[419291505,1775117441702,-7900.0,0.000149,5]
[419291506,1775117441713,-1090.37665391,0.00014904,5]
[419291507,1775117441723,-500.0,0.00014904,2]
[419291508,1775117441732,-500.0,0.00014904,2]
[419291509,1775117441742,-500.0,0.00014904,2]
[419291510,1775117441751,-500.0,0.00014904,2]
[419291511,1775117441760,-500.0,0.00014904,2]
[419291512,1775117441770,-500.0,0.00014904,2]
[419291513,1775117441778,-500.0,0.00014904,2]
[419291514,1775117441788,-500.0,0.00014904,2]
[419291515,1775117441797,-500.0,0.00014904,2]
[419291516,1775117441806,-500.0,0.00014904,2]
[419291517,1775117441816,-500.0,0.00014904,2]
[419291518,1775117441826,-500.0,0.00014904,2]
[419291519,1775117441835,-500.0,0.00014904,2]
[419291520,1775117441845,-500.0,0.00014904,2]
[419291521,1775117441855,-500.0,0.00014904,2]
[419291522,1775117441866,-262.05217327,0.00014904,2]
[419291523,1775117441876,-500.0,0.00014904,2]
[419291524,1775117441886,-500.0,0.00014904,2]
[419291525,1775117441897,-402.1199774,0.00014904,2]
[419291526,1775117441907,-500.0,0.00014904,2]
[419291527,1775117441918,-510.45514937,0.00014904,2]
[419291528,1775117441927,-500.0,0.00014904,2]
[419291529,1775117441936,-500.0,0.00014904,2]
[419291530,1775117441946,-500.0,0.00014904,2]
[419291531,1775117441955,-500.0,0.00014904,2]
[419291532,1775117441965,-500.0,0.00014904,2]
[419291533,1775117441974,-500.0,0.00014904,2]
[419291534,1775117441984,-500.0,0.00014904,2]
[419291535,1775117441993,-500.0,0.00014904,2]
[419291536,1775117442003,-500.0,0.00014904,2]
[419291537,1775117442012,-500.0,0.00014904,2]
[419291538,1775117442021,-500.0,0.00014904,2]
[419291539,1775117442030,-500.0,0.00014904,2]
[419291540,1775117442039,-500.0,0.00014904,2]
[419291541,1775117442049,-187.10612431,0.00014904,2]
[419291542,1775117442058,-500.0,0.00014904,2]
[419291543,1775117442067,-500.0,0.00014904,2]
[419291544,1775117442077,-500.0,0.00014904,2]
[419291545,1775117442086,-500.0,0.00014904,2]
[419291546,1775117442096,-500.0,0.00014904,2]
[419291547,1775117442105,-500.0,0.00014905,2]
[419291548,1775117442114,-500.0,0.00014905,2]
[419291549,1775117442124,-500.0,0.00014905,2]
[419291550,1775117442134,-500.0,0.00014905,2]
[419291551,1775117442144,-500.0,0.00014905,2]
[419291552,1775117442155,-500.0,0.00014905,2]
[419291553,1775117442165,-1000.0,0.00014905,2]
[419291554,1775117442175,-304.17782352,0.00014973,2]
[419291555,1775117442184,-164.72699301,0.00014973,2]
[419291556,1775117442196,-500.0,0.00014973,2]
[419291557,1775117442207,-500.40097666,0.00014973,2]
[419291558,1775117442217,-500.0,0.00014973,2]
[419291559,1775117442228,-163.53544722,0.00014973,2]
[419291560,1775117442238,-161.84197256,0.00014973,2]
[419291561,1775117442246,-500.0,0.00014973,2]
[419291562,1775117442256,-500.96174367,0.00014973,2]
[419291563,1775117442267,-500.0,0.00014973,2]
[419291564,1775117442277,-500.0,0.00014973,2]
[419291565,1775117442288,-501.17803904,0.00014973,2]
[419291566,1775117442299,-500.0,0.00014973,2]
[419291567,1775117442307,-500.0,0.00014979,2]
[419291568,1775117442318,-158.20862984,0.00014985,2]
[419291569,1775117442328,-300.0,0.00015,2]
[419291570,1775117442338,-500.0,0.00015005,2]
[419291571,1775117442348,-500.0,0.00015005,2]
[419291572,1775117442359,-500.0,0.00015005,2]
[419291573,1775117442369,-500.0,0.00015005,2]
[419291574,1775117442378,-500.0,0.00015005,2]
[419291575,1775117442387,-500.0,0.00015005,2]
[419291576,1775117442396,-500.0,0.00015005,2]
[419291577,1775117442404,-500.0,0.00015005,2]
[419291578,1775117442414,-500.0,0.00015005,2]
[419291579,1775117442424,-500.0,0.00015005,2]
[419291580,1775117442433,-500.0,0.00015005,2]
[419291581,1775117442442,-500.0,0.00015005,2]
[419291582,1775117442451,-508.47827406,0.00015005,2]
[419291583,1775117442460,-500.0,0.00015005,2]
[419291584,1775117442470,-500.0,0.00015005,2]
[419291585,1775117442478,-500.0,0.00015005,2]
[419291586,1775117442487,-500.0,0.00015005,2]
[419291587,1775117442496,-500.0,0.00015005,2]
[419291588,1775117442505,-500.0,0.00015005,2]
[419291590,1775117442515,-381.5772541,0.00015005,2]
[419291591,1775117442524,-500.0,0.00015005,2]
[419291592,1775117442533,-1239.55,0.00015005,2]
[419291593,1775117442543,-1239.55,0.00015005,2]
[419291594,1775117442552,-1239.55,0.00015005,2]
[419291595,1775117442562,-1239.55,0.00015005,2]
[419291596,1775117442571,-1239.55,0.00015005,2]
[419291597,1775117442580,-1239.55,0.00015005,2]
[419291598,1775117442589,-500.0,0.00015005,2]
[419291599,1775117442598,-500.0,0.00015005,2]
[419291600,1775117442607,-500.0,0.00015005,2]
[419291601,1775117442616,-500.0,0.00015005,2]
[419291602,1775117442625,-500.0,0.00015005,2]
[419291603,1775117442634,-365.52727909,0.00015005,2]
[419291604,1775117442644,-174.79667568,0.00015011,2]
[419291606,1775117442653,-326.59559359,0.00015158,2]
[419291608,1775117442663,-305.56026764,0.00015158,2]
[419291609,1775117442673,-500.0,0.00015158,2]
[419291610,1775117442682,-500.0,0.00015158,2]
[419291611,1775117442691,-9552.16786547,0.00015158,2]
[419291612,1775117442700,-500.0,0.00015158,2]
[419291613,1775117442710,-500.0,0.00015158,2]
[419291616,1775117442720,-500.0,0.00015158,2]
[419291617,1775117442730,-500.0,0.00015158,2]
[419291618,1775117442739,-500.0,0.00015158,2]
[419291619,1775117442749,-500.0,0.00015158,2]
[419291620,1775117442758,-500.0,0.00015158,2]
[419291621,1775117442767,-500.0,0.00015158,2]
[419291622,1775117442777,-429.60065942,0.00015158,2]
[419291623,1775117442786,-500.0,0.00015158,2]
[419291624,1775117442796,-500.0,0.00015158,2]
[419291625,1775117442805,-1428.38747117,0.00015158,2]
[419291626,1775117442815,-500.0,0.00015158,2]
[419291627,1775117442824,-500.0,0.00015158,2]
[419291628,1775117442833,-500.0,0.00015158,2]
[419291629,1775117442844,-500.0,0.00015158,2]
[419291630,1775117442854,-151.0,0.00015158,2]
[419291631,1775117442863,-250.0,0.00015158,2]
[419291632,1775117442873,-500.0,0.00015158,2]
[419291633,1775117442882,-250.0,0.00015158,2]
[419291634,1775117442892,-500.0,0.00015158,2]
[419291635,1775117442901,-250.0,0.00015158,2]
[419291637,1775117442910,-174.61919141,0.00015158,2]
[419291638,1775117442919,-500.0,0.00015158,2]
[419291640,1775117442929,-250.0,0.00015158,2]
[419291641,1775117442938,-500.0,0.00015158,2]
[419291642,1775117442947,-250.0,0.00015158,2]
[419291643,1775117442956,-500.0,0.00015158,2]
[419291644,1775117442966,-250.0,0.00015158,2]
[419291645,1775117442975,-500.0,0.00015158,2]
[419291646,1775117442984,-250.0,0.00015158,2]
[419291647,1775117442993,-500.0,0.00015158,2]
[419291648,1775117443002,-250.0,0.00015158,2]
[419291649,1775117443012,-250.0,0.00015158,2]
[419291650,1775117443022,-500.0,0.00015158,2]
[419291651,1775117443033,-250.0,0.00015158,2]
[419291652,1775117443042,-500.0,0.00015158,2]
[419291653,1775117443052,-500.0,0.00015158,2]
[419291654,1775117443062,-250.0,0.00015158,2]
[419291655,1775117443072,-743.50770149,0.00015158,2]
[419291656,1775117443082,-170.0,0.00015158,2]
[419291657,1775117443091,-170.0,0.00015158,2]
[419291658,1775117443101,-170.0,0.00015158,2]
[419291659,1775117443111,-170.0,0.00015158,2]
[419291660,1775117443121,-170.0,0.00015158,2]
[419291661,1775117443131,-200.0,0.00015158,2]
[419291662,1775117443140,-170.0,0.00015158,2]
[419291663,1775117443150,-171.67473907,0.00015158,2]
[419291664,1775117443161,-170.0,0.00015158,2]
[419291665,1775117443170,-170.0,0.00015158,2]
[419291666,1775117443180,-170.0,0.00015158,2]
[419291667,1775117443190,-170.0,0.00015158,2]
[419291668,1775117443199,-170.0,0.00015158,2]
[419291669,1775117443209,-10000.0,0.00015205,2]
[419291670,1775117443219,-500.0,0.00015213,2]
[419291671,1775117443229,-9444.19985896,0.00015213,2]
[419291672,1775117443239,-151.0,0.00015213,2]
[419291673,1775117443248,-500.0,0.00015221,2]
[419291674,1775117443262,-156.09193038,0.00015224,2]
[419291675,1775117443272,-500.0,0.00015253,2]
[419291677,1775117443282,-500.0,0.00015268,2]
[419291678,1775117443292,-151.0,0.00015268,2]
[419291679,1775117443303,-313.70990841,0.00015303,2]
[419291680,1775117443312,-638.11976206,0.0001532,2]
[419291681,1775117443322,-597.15847285,0.00015321,2]
[419291682,1775117443333,-501.90683054,0.00015321,2]
[419291683,1775117443343,-501.67855026,0.00015321,2]
[419291684,1775117443353,-294.14069751,0.00015321,2]
[419291685,1775117443363,-500.0,0.00015323,2]
[419291686,1775117443372,-151.0,0.00015323,2]
[419291687,1775117443382,-561.20656629,0.00015327,2]
[419291688,1775117443392,-483.36553723,0.00015329,2]
[419291689,1775117443402,-350.0,0.00015338,2]
[419291690,1775117443412,-285.95309516,0.00015344,2]
[419291691,1775117443422,-350.0,0.00015369,2]
[419291692,1775117443431,-500.0,0.00015378,2]
[419291693,1775117443441,-151.0,0.00015378,2]
[419291694,1775117443451,-224.28659877,0.00015421,2]
[419291695,1775117443461,-1000.0,0.00015421,2]
[419291696,1775117443471,-1000.0,0.00015421,2]
[419291697,1775117443481,-500.0,0.00015421,2]
[419291698,1775117443490,-1000.0,0.00015421,2]
[419291699,1775117443500,-1000.0,0.00015421,2]
[419291700,1775117443510,-275.47720931,0.00015421,2]
[419291701,1775117443519,-1000.0,0.00015421,2]
[419291702,1775117443529,-501.40120114,0.00015421,2]
[419291703,1775117443539,-500.0,0.00015433,2]
[419291704,1775117443549,-151.0,0.00015433,2]
[419291705,1775117443558,-903.14,0.0001544,2]
[419291706,1775117443568,-1855.25,0.00015457,2]
[419291707,1775117443578,-500.0,0.00015488,2]
[419291708,1775117443587,-151.0,0.00015488,2]
[419291709,1775117443597,-228.8503993,0.00015494,2]
[419291710,1775117443606,-1006.93,0.00015507,2]
[419291711,1775117443615,-500.0,0.00015521,2]
[419291712,1775117443626,-744.6131476,0.00015521,2]
[419291713,1775117443635,-1000.0,0.00015521,2]
[419291714,1775117443645,-184.210932,0.00015523,7]
[419291715,1775117443655,-500.0,0.00015527,2]
[419291716,1775117443664,-500.0,0.00015543,2]
[419291717,1775117443674,-151.0,0.00015543,2]
[419291718,1775117443683,-160.0,0.00015582,7]
[419291719,1775117443692,-163.258998,0.00015582,7]
[419291720,1775117443702,-166.517997,0.00015582,7]
[419291721,1775117443711,-202.670806,0.00015582,7]
[419291722,1775117443721,-500.0,0.00015598,2]
[419291723,1775117443731,-151.0,0.00015598,2]
[419291725,1775117443741,-5609.0,0.00015604,2]
[419291726,1775117443750,-5609.0,0.00015609,2]
[419291728,1775117443760,-5609.0,0.00015632,2]
[419291729,1775117443770,-5609.0,0.00015633,2]
[419291730,1775117443780,-5609.0,0.00015635,2]